Cogmind - Beta 14 @@@ ROGUE MODE // 2024.08.14 @ 01:28:26 Player: opdo Result: Destroyed by I5-13E(z) with Makeshift Shrapnel Gun Performance ------------- Evolutions (4) 2000 Regions Visited (8) 1600 Robots Destroyed (53) 265 Value Destroyed (1287) 1287 Prototype IDs (10) 200 Alien Tech Used (0) 0 Bonus (818) 818 TOTAL SCORE: 6170 Bonus ------- Follower Combat Kills 218 Registered with UFD 300 Met Imprinter 300 Cogmind --------- Core Integrity 0/850 Matter 284/300 Energy 100/100 System Corruption 11% Temperature Cool (0) Movement Walking (140) Location -6/Zion Parts ------- > --- POWER (2) -------- (None) > --- PROPULSION (4) --- Makeshift Leg > --- UTILITY (7) ------ Improved Signal Interpreter Advanced Terrain Scanner Makeshift Weapon Shielding > --- WEAPON (2) ------- Makeshift Sword Companion Sword > --- INVENTORY (5) ---- Improved Melee Analysis Suite Makeshift Hacking Suite Great Maul Peak State ------------ > --- POWER ------------ Light Nuclear Core Light Fission Core > --- PROPULSION ------- Carbon-fiber Leg Armored Leg Armored Leg VTOL Module > --- UTILITY ---------- Improved Signal Interpreter Advanced Terrain Scanner Improved Terrain Scan Processor Makeshift Light Armor Plating Heart of Steel > --- WEAPON ----------- Ripper Companion Sword > --- INVENTORY -------- Light Treads VTOL Module 0b10 Decoder Chip [Scout] Improved Focal Shield Great Maul [Rating: 73] Favorites ----------- Power Light Ion Engine Engine Light Ion Engine Power Core Light Nuclear Core Reactor Light Antimatter Reactor Propulsion Light Treads Treads Light Treads Leg Armored Leg Flight Unit VTOL Module Utility Seismic Detector Device Seismic Detector Storage Medium Storage Unit Processor Improved Signal Interpreter Protection Makeshift Light Armor Plating Weapon Companion Sword Energy Gun Subdweller Laser Ballistic Gun Light Assault Rifle Ballistic Cannon Light Cannon Special Weapon RU-N14's Throwing Claymores Impact Weapon Great Maul Slashing Weapon Companion Sword Build | -11 -10 -10 -9 -9 -6 -6 -6 -6 ------- Run | Yrd Mat Sub Rec Scr Fac Low Low Zio Slots Evolved 8 | . . . . . 8 . . . Power 1 | . . . . . 1 . . . Propulsion 2 | . . . . . 2 . . . Utility 5 | . . . . . 5 . . . Weapon . | . . . . . . . . . Parts Attached 82 | 7 2 10 6 5 9 13 12 18 Power 18 | 1 1 2 1 1 1 3 3 5 Engine 9 | 1 1 2 1 . . . . 4 Core 8 | . . . . 1 1 3 2 1 Reactor 1 | . . . . . . . 1 . Propulsion 27 | 2 . . 3 2 2 5 5 8 Treads 7 | 2 . . 2 . . 1 1 1 Leg 13 | . . . . . 2 2 2 7 Wheel . | . . . . . . . . . Hover . | . . . . . . . . . Flight 7 | . . . 1 2 . 2 2 . Utility 20 | 2 1 1 . . 6 5 3 2 Device 9 | 1 . 1 . . 3 4 . . Storage 2 | 1 1 . . . . . . . Processor 5 | . . . . . 3 . 1 1 Hackware . | . . . . . . . . . Protection 4 | . . . . . . 1 2 1 Artifact . | . . . . . . . . . Weapon 17 | 2 . 7 2 2 . . 1 3 Energy Gun 1 | . . . 1 . . . . . Energy Cannon . | . . . . . . . . . Ballistic Gun 6 | 2 . 4 . . . . . . Ballistic Cannon 1 | . . . 1 . . . . . Launcher . | . . . . . . . . . Special Weapon 5 | . . 3 . . . . . 2 Impact Weapon 1 | . . . . . . . 1 . Slashing Weapon 3 | . . . . 2 . . . 1 Piercing Weapon . | . . . . . . . . . Special Melee Weapon . | . . . . . . . . . Unidentified Prototypes 3 | . . . . 1 . 1 . 1 Parts Lost 39 | . . 1 2 . . 11 4 21 Power 9 | . . . 1 . . 1 1 6 Propulsion 16 | . . 1 . . . 4 2 9 Utility 11 | . . . . . . 6 . 5 Weapon 3 | . . . 1 . . . 1 1 Highest Loss Streak 13 | . . 1 2 . . 6 4 13 To Critical Strikes . | . . . . . . . . . Average Slot Usage (%) 94 | . 100 99 99 99 87 84 87 93 Engine 7 | . 14 14 13 13 . . . 1 Core 4 | . . . . . 10 12 9 5 Treads 11 | . 28 27 24 17 . 3 . . Leg 7 | . . . . . 4 12 14 22 Flight 7 | . . . 3 10 13 7 9 1 Device 13 | . 14 14 14 14 25 14 9 6 Storage 7 | . 14 14 14 14 . . . . Processor 7 | . . . . . 20 13 16 18 Protection 3 | . . . . . . 3 10 18 Ballistic Gun 6 | . 28 23 17 5 . . . . Ballistic Cannon 2 | . . . 10 5 . . . . Slashing Weapon 10 | . . . . 16 13 13 9 6 Peak Build Rating 73 | 7 8 10 10 26 60 68 73 69 Average Rating 34 | 5 7 9 8 15 52 57 62 61 On Entrance 27 | . 7 8 8 9 26 60 68 60 Naked Turns . | . . . . . . . . . Heaviest Build 40 | 13 18 19 18 28 28 36 36 40 Greatest Support 71 | 40 40 40 40 40 36 36 47 71 Greatest Overweight (x) 3 | 3 . . . 2 2 1 1 1 Average Overweight (x) . | . . . . . 1 . . . Largest Inventory Capacity 10 | 8 10 10 10 10 10 5 5 5 Average Capacity 7 | 7 9 10 10 10 5 5 5 5 Most Carried 10 | 3 10 10 10 10 9 5 5 5 Average Carried 7 | 2 9 9 9 9 5 4 4 4 Final Capacity 10 | 8 10 10 10 10 5 5 5 5 Final Carried 10 | 3 10 10 10 10 5 5 5 3 Class Distribution -------------------- 42% | Commander-Mutant 24% | Mutant 24% | Scavenger-Mutant 8% | Derelict-Mutant Dominant Class ---------------- Mutant | -10/Materials Mutant | -10/Subcaves Commander-Mutant | -9/Recycling Commander-Mutant | -9/Scraptown Commander-Mutant | -6/Factory Scavenger-Mutant | -6/Lower Caves Mutant | -6/Lower Caves Derelict-Mutant | -6/Zion Resources | -11 -10 -10 -9 -9 -6 -6 -6 -6 ----------- Run | Yrd Mat Sub Rec Scr Fac Low Low Zio Matter Collected 3052 | 205 140 96 147 5 72 1348 916 123 Remotely . | . . . . . . . . . Salvage Created 1362 | 74 234 156 196 . 13 223 162 304 Parts 90 | 2 20 11 14 . 4 10 4 25 Haulers Intercepted . | . . . . . . . . . Recyclers Shooed 1 | 1 . . . . . . . . Parts Field Recycled . | . . . . . . . . . Retrieved Matter . | . . . . . . . . . Parts Self-Destructed 51 | . . 7 . . . 39 5 . Prevented . | . . . . . . . . . Kills | -11 -10 -10 -9 -9 -6 -6 -6 -6 ------- Run | Yrd Mat Sub Rec Scr Fac Low Low Zio Combat Hostiles Destroyed 33 | . 7 6 4 . . 7 5 4 Melee 13 | . . . . . . 7 5 1 Guns 16 | . 7 6 3 . . . . . Cannons 1 | . . . 1 . . . . . AOE 3 | . . . . . . . . 3 Classes Destroyed 12 | 1 3 1 3 . 1 . 1 2 Builder 1 | . . . . . 1 . . . Tunneler 3 | 3 . . . . . . . . Operator 1 | . 1 . . . . . . . Swarmer 17 | . 3 4 . . . 6 4 . Grunt 6 | . 4 . 1 . . 1 . . Brawler 1 | . . . 1 . . . . . Demolisher 1 | . . . 1 . . . . . Hunter 1 | . . . . . . . 1 . Programmer 1 | . . . 1 . . . . . Subdweller 2 | . . 2 . . . . . . Zionite 15 | . . . . . . . . 15 Mutant 4 | . . . . . . . . 4 Best Kill Streak 8 | 3 4 4 4 . 1 4 2 8 Combat Bots Only 4 | . 4 4 4 . . 4 2 4 Max Kills in Single Turn 5 | 1 1 1 1 . 1 1 1 5 Gunslinging . | . . . . . . . . . Exploded 1 | . . . . . . . . 1 Melee 1 | . . . . . . 1 1 1 Uniques/NPCs Destroyed . | . . . . . . . . . Combat | -11 -10 -10 -9 -9 -6 -6 -6 -6 -------- Run | Yrd Mat Sub Rec Scr Fac Low Low Zio Hostile Shots Fired 501 | . 25 65 15 . . 93 71 232 Missed 174 | . 9 19 3 . . 28 22 93 Damage Taken 5033 | . 162 439 274 . 40 1017 761 2340 Core 1059 | . 10 112 87 . . 168 162 520 Absorbed by Shields 13 | . . . . . 13 . . . Redirected to Shielding 121 | . . . . . . . . 121 Regen/Repaired (Parts) 15 | . . . . . . . . 15 Core Remaining (%) 58 | 100 . . . 16 . . . . Volleys Fired 73 | 8 26 22 9 . . . . 8 Largest 2 | 2 2 2 2 . . . . 1 Hottest 125 | 40 40 125 55 . . . . . Shots Fired 131 | 16 52 38 17 . . . . 8 Gun 109 | 16 52 28 13 . . . . . Cannon 4 | . . . 4 . . . . . Launcher . | . . . . . . . . . Special 18 | . . 10 . . . . . 8 Kinetic 113 | 16 52 28 17 . . . . . Thermal 10 | . . 10 . . . . . . Explosive 8 | . . . . . . . . 8 Electromagnetic . | . . . . . . . . . Robot Hit Streak 24 | 6 8 24 14 . . . . 4 Robot Miss Streak 3 | 1 3 1 1 . . . . 1 Penetration Max . | . . . . . . . . . Secondary Targets . | . . . . . . . . . Shots Hit Robots 120 | 12 33 21 14 . 1 11 13 15 Core Hits 67 | 6 16 8 6 . . 7 4 20 Critical Kills . | . . . . . . . . . Critical Parts Destroyed . | . . . . . . . . . Critical Strikes 3 | . . 1 . . . . . 2 Destroy 1 | . . 1 . . . . . . Sever 2 | . . . . . . . . 2 Melee Attacks 54 | . . . . . 1 21 18 14 Impact . | . . . . . . . . . Slashing 54 | . . . . . 1 21 18 14 Piercing . | . . . . . . . . . Sneak Attacks 2 | . . . . . 1 . 1 . Combat Hostiles . | . . . . . . . . . Follow-up Attacks 5 | . . . . . . 3 1 1 Damage Inflicted 4305 | 93 268 261 171 . 74 429 573 2436 Guns 713 | 93 264 237 119 . . . . . Cannons 52 | . . . 52 . . . . . Explosions 1796 | . . . . . . . . 1796 Melee 1449 | . . . . . 74 429 573 373 Ramming 4 | . 4 . . . . . . . Kinetic 765 | 93 264 237 171 . . . . . Thermal 24 | . . 24 . . . . . . Explosive 1796 | . . . . . . . . 1796 Electromagnetic . | . . . . . . . . . Impact . | . . . . . . . . . Slashing 1716 | . . . . . 74 429 573 640 Piercing . | . . . . . . . . . Highest Corruption 11 | . . . . . . . . 11 Average Corruption 8 | . . . . . . . . 8 Corruption Purged . | . . . . . . . . . Corruption Blocked . | . . . . . . . . . Effects 9 | . . . . . . . . 9 Message Errors 2 | . . . . . . . . 2 Matter Fused 1 | . . . . . . . . 1 Heat Flow Errors 2 | . . . . . . . . 2 Data Loss (minor) 3 | . . . . . . . . 3 Data Loss (major) 1 | . . . . . . . . 1 Overload Shots . | . . . . . . . . . Overflow Damage 260 | . . . . . 34 32 72 122 Projectiles 16 | . . . . . . . . 16 Explosions 86 | . . . . . . . . 86 Melee 158 | . . . . . 34 32 72 20 Knockbacks . | . . . . . . . . . Impact . | . . . . . . . . . Kinetic . | . . . . . . . . . Secondary . | . . . . . . . . . Self-Inflicted Damage . | . . . . . . . . . Shots . | . . . . . . . . . Rammed 2 | . 2 . . . . . . . Targets Rammed 2 | . 2 . . . . . . . Kicked . | . . . . . . . . . Crushed . | . . . . . . . . . Highest Temperature 185 | . 12 . 14 . . 4 . 185 Average Temperature 36 | . 7 . 4 . . 4 . 68 Received Heat Transfer 938 | . 72 174 12 . . 114 18 548 Siege Activations . | . . . . . . . . . Robots Corrupted . | . . . . . . . . . Combat Hostiles . | . . . . . . . . . Parts Fried . | . . . . . . . . . Impact Corruptions . | . . . . . . . . . Robots Melted . | . . . . . . . . . Combat Hostiles . | . . . . . . . . . Parts Melted 2 | . . . . . . . . 2 Heat Transferred 50 | . . 50 . . . . . . Parts Sabotaged . | . . . . . . . . . Parts Stolen . | . . . . . . . . . Parts Stripped . | . . . . . . . . . Power Chain Reactions . | . . . . . . . . . Alert | -11 -10 -10 -9 -9 -6 -6 -6 -6 ------- Run | Yrd Mat Sub Rec Scr Fac Low Low Zio Peak Influence 231 | 15 170 . 231 . 57 . . . Initial 62 | . 9 . 62 . . . . . Average 63 | 5 70 . 81 . 30 . . . Maximum Alert Level 1 | . . . 1 . . . . . Low Security (%) 93 | 100 100 . 82 . 100 . . . Level 1 6 | . . . 17 . . . . . Level 2 . | . . . . . . . . . Level 3 . | . . . . . . . . . Level 4 . | . . . . . . . . . Level 5 . | . . . . . . . . . High Security . | . . . . . . . . . Max Security . | . . . . . . . . . Squads Dispatched 3 | . 2 . . . 1 . . . Investigation 2 | . 1 . . . 1 . . . Extermination . | . . . . . . . . . Reinforcement 1 | . 1 . . . . . . . Assault . | . . . . . . . . . Garrison . | . . . . . . . . . Intercept . | . . . . . . . . . Searches Triggered . | . . . . . . . . . Construction Impeded . | . . . . . . . . . Haulers Reinforced . | . . . . . . . . . Active Scanning Responses . | . . . . . . . . . Cargo Convoy Interrupts . | . . . . . . . . . Stealth | -11 -10 -10 -9 -9 -6 -6 -6 -6 --------- Run | Yrd Mat Sub Rec Scr Fac Low Low Zio Distress Signals . | . . . . . . . . . Communications Jammed . | . . . . . . . . . Distress Signals . | . . . . . . . . . Times Spotted 94 | . 14 9 5 . 8 15 9 34 Peak Tracking Total 12 | . 7 3 4 . 4 7 4 12 Tactical Retreats 10 | . 1 2 . . 1 1 1 4 Traps | -11 -10 -10 -9 -9 -6 -6 -6 -6 ------- Run | Yrd Mat Sub Rec Scr Fac Low Low Zio Traps Triggered . | . . . . . . . . . Indirectly . | . . . . . . . . . Trap Hack Attempts . | . . . . . . . . . Triggered . | . . . . . . . . . Disarmed . | . . . . . . . . . Reprogrammed . | . . . . . . . . . Reused . | . . . . . . . . . Traps Extracted . | . . . . . . . . . Installed . | . . . . . . . . . Triggered . | . . . . . . . . . Machines | -11 -10 -10 -9 -9 -6 -6 -6 -6 ---------- Run | Yrd Mat Sub Rec Scr Fac Low Low Zio Machines Disabled 3 | . . . . . . . . 3 Max in Single Turn 1 | . . . . . . . . 1 Machines Repaired . | . . . . . . . . . Machines Dismantled . | . . . . . . . . . Machines Sabotaged . | . . . . . . . . . Overloaded Fab Kills . | . . . . . . . . . Hacking | -11 -10 -10 -9 -9 -6 -6 -6 -6 --------- Run | Yrd Mat Sub Rec Scr Fac Low Low Zio Machines Accessed 26 | . 5 . 11 2 3 4 . 1 Terminals 12 | . 4 . 5 . 3 . . . Fabricators . | . . . . . . . . . Repair Stations 1 | . 1 . . . . . . . Recycling Units 5 | . . . 5 . . . . . Scanalyzers . | . . . . . . . . . Garrison Access . | . . . . . . . . . Total Hacks 67 | . 12 . 29 4 9 7 . 6 Successful 45 | . 7 . 17 4 4 7 . 6 Failed 22 | . 5 . 12 . 5 . . . Catastrophic 2 | . . . 1 . 1 . . . Database Lockouts . | . . . . . . . . . Manual 38 | . 10 . 21 . 7 . . . Terminals 37 | . 10 . 18 . 9 . . . Fabricators . | . . . . . . . . . Repair Stations 2 | . 2 . . . . . . . Recycling Units 10 | . . . 10 . . . . . Scanalyzers . | . . . . . . . . . Garrison Access . | . . . . . . . . . Terminal Hacks 32 | . 4 . 9 4 2 7 . 6 Record 7 | . . . . 3 . 4 . . Part Schematic 6 | . . . . . . . . 6 Robot Analysis 3 | . 1 . 2 . . . . . Open Door 4 | . . . . 1 . 3 . . Branch Access Points 2 | . 1 . . . 1 . . . Terminal Index 2 | . 1 . 1 . . . . . Recycling Unit Index 1 | . . . 1 . . . . . Alert Level 1 | . . . . . 1 . . . Security Status 1 | . . . 1 . . . . . Zone Layout 4 | . 1 . 3 . . . . . Release Object 1 | . . . 1 . . . . . Fabricator Hacks . | . . . . . . . . . Repair Station Hacks . | . . . . . . . . . Recycling Unit Hacks 2 | . . . 2 . . . . . Report Inventory 2 | . . . 2 . . . . . Scanalyzer . | . . . . . . . . . Garrison Access Hacks . | . . . . . . . . . Unauthorized Hacks 10 | . 3 . 5 . 2 . . . Terminals 5 | . 2 . 1 . 2 . . . Track 2 | . 1 . 1 . . . . . Botnet 3 | . 1 . . . 2 . . . Fabricators . | . . . . . . . . . Repair Stations 1 | . 1 . . . . . . . Patch 1 | . 1 . . . . . . . Recycling Units 4 | . . . 4 . . . . . Tunnel 4 | . . . 4 . . . . . Scanalyzers . | . . . . . . . . . Garrison Access . | . . . . . . . . . Data Cores Recovered 1 | . . . . . 1 . . . Used . | . . . . . . . . . Hacking Detections 13 | . 4 . 6 . 3 . . . Full Trace Events 5 | . . . 4 . 1 . . . Feedback Events . | . . . . . . . . . Feedback Blocked . | . . . . . . . . . Robot Schematics Acquired . | . . . . . . . . . Robots Built . | . . . . . . . . . Authchips . | . . . . . . . . . Time . | . . . . . . . . . Total Robot Build Rating . | . . . . . . . . . Part Schematics Acquired 6 | . . . . . . . . 6 Parts Built . | . . . . . . . . . Authchips . | . . . . . . . . . Time . | . . . . . . . . . Total Part Build Rating . | . . . . . . . . . Parts Repaired . | . . . . . . . . . Time . | . . . . . . . . . Parts Recycled . | . . . . . . . . . Recycled Matter . | . . . . . . . . . Retrieved Matter . | . . . . . . . . . Retrieved Components . | . . . . . . . . . Parts Scanalyzed . | . . . . . . . . . Part Schematics Acquired . | . . . . . . . . . Parts Damaged . | . . . . . . . . . Bothacking | -11 -10 -10 -9 -9 -6 -6 -6 -6 ------------ Run | Yrd Mat Sub Rec Scr Fac Low Low Zio Used RIF Installer . | . . . . . . . . . Robots Hacked . | . . . . . . . . . Non-combat . | . . . . . . . . . Combat . | . . . . . . . . . Robot Hacks Applied . | . . . . . . . . . Relay Couplers Released . | . . . . . . . . . Fabnet Peak Effective % . | . . . . . . . . . Robots Rewired 13 | . . . 11 . . 2 . . Allies Hacked . | . . . . . . . . . Hacks Repelled . | . . . . . . . . . Allies | -11 -10 -10 -9 -9 -6 -6 -6 -6 -------- Run | Yrd Mat Sub Rec Scr Fac Low Low Zio Total Allies 15 | . . . 11 1 . 2 1 . Largest Group 12 | . . . 11 12 12 2 2 1 Highest-Rated Group 196 | . . . 154 196 196 58 99 99 Highest-Rated Ally 99 | . . . 34 43 43 29 99 99 Total Orders 11 | . . . 3 5 2 1 . . ROAM 1 | . . . . . 1 . . . GUARD 1 | . . . . . . 1 . . DROP 5 | . . . 2 3 . . . . PICKUP 2 | . . . . 1 1 . . . COLLECT 2 | . . . 1 1 . . . . Ally Attacks 77 | . . . 10 . 27 12 26 2 Total Damage 2254 | . . . 167 . 603 188 1067 229 Kills 13 | . . . 1 . 9 . 3 . Allies Corrupted 1 | . . . . . . . . 1 Allies Melted . | . . . . . . . . . Intel | -11 -10 -10 -9 -9 -6 -6 -6 -6 ------- Run | Yrd Mat Sub Rec Scr Fac Low Low Zio Robot Analysis Total 3 | . 1 . 2 . . . . . Derelict Logs Recovered 6 | . . . . 1 . 2 2 1 Drone Launches . | . . . . . . . . . Drone Recoveries . | . . . . . . . . . Decoded 0b10 Intel 14 | . . . . . 14 . . . Items 13 | . . . . . 13 . . . Machines 1 | . . . . . 1 . . . Exploration | -11 -10 -10 -9 -9 -6 -6 -6 -6 ------------- Run | Yrd Mat Sub Rec Scr Fac Low Low Zio Turns Passed 11496 | 136 941 376 1008 3689 500 2088 1438 1320 Spaces Moved 6541 | 65 251 176 522 2120 303 1301 909 894 Core 13 | 13 . . . . . . . . Treads 2523 | 52 251 176 522 1445 . . 77 . Legs 3159 | . . . . . 132 1301 832 894 Wheels . | . . . . . . . . . Hover . | . . . . . . . . . Flight 846 | . . . . 675 171 . . . Fastest Speed 50 | 50 160 160 160 160 117 120 120 120 Average Speed 158 | 158 160 160 160 171 160 154 148 138 Slowest Speed 210 | 200 160 160 160 197 197 190 190 210 Overloaded Moves . | . . . . . . . . . Propulsion Burnouts . | . . . . . . . . . Robots Hopped . | . . . . . . . . . Cave-ins Triggered . | . . . . . . . . . Exploration Rate (%) 57 | 5 45 16 91 92 7 94 85 80 Regions Visited 8 Branch Regions 6 Pre-discovered Areas 7 | . . 1 4 . . 2 . . Known Exits Taken 3 | . . . . . 1 1 1 . Unknown Exits Taken 5 | 1 1 1 1 1 . . . . Scrap Searched 15 | . . . . 2 . 1 10 2 Spaces Dug . | . . . . . . . . . Terrain Destroyed 4 | . . . . . . . . 4 Melee . | . . . . . . . . . Projectile . | . . . . . . . . . AOE 4 | . . . . . . . . 4 Terrain Rammed . | . . . . . . . . . Walls Destroyed . | . . . . . . . . . Machines Disabled . | . . . . . . . . . Actions | -11 -10 -10 -9 -9 -6 -6 -6 -6 --------- Run | Yrd Mat Sub Rec Scr Fac Low Low Zio Total 7493 | 82 749 216 679 2181 317 1352 971 946 Wait 511 | . 456 . 14 11 . 1 25 4 Move 6533 | 64 250 175 521 2119 302 1300 908 894 Hop . | . . . . . . . . . Pick Up 52 | 3 9 3 1 22 2 4 5 3 Fast Attach 42 | 7 . 1 2 1 4 8 4 15 Attach 20 | . . 1 2 3 5 3 4 2 Detach 1 | . . . . . . 1 . . Swap 20 | . 2 8 2 1 . 2 4 1 Drop 53 | . 4 6 1 24 3 5 4 6 Fire 73 | 8 26 22 9 . . . . 8 Melee 48 | . . . . . 1 17 17 13 Ram . | . . . . . . . . . Kick . | . . . . . . . . . Crush 2 | . 2 . . . . . . . Escape Stasis . | . . . . . . . . . Rewire 137 | . . . 127 . . 10 . . Trap . | . . . . . . . . . Miscellaneous 1 | . . . . . . 1 . . Route ------- -11/Scrapyard -10/Materials (discovered 3 exits: [*Mat] / Min / [*Sub]) -10/Subcaves -9/Recycling (discovered 2 exits: [*Fac] / *Scr) -9/Scraptown (discovered 2 exits: *Fac x2) -6/Factory (discovered 2 exits: *Low x2) -6/Lower Caves -6/Lower Caves (discovered 2 exits: *Fac / *Zio) -6/Zion History --------- Turn | Location | Event 50 | -11/Scrapyard | Discovered new exit (range 15) 137 | -11/Scrapyard | Entered Materials 309 | -10/Materials | Build established: Mutant 478 | -10/Materials | Discovered new exit (range 16) 511 | -10/Materials | Identified exit to Mines 1063 | -10/Materials | Discovered new exit (range 4) 1078 | -10/Materials | Entered Subcaves 1095 | -10/Subcaves | Shifting Twisted Machinery released Mak. Light Armor Plating 1123 | -10/Subcaves | Shifting Twisted Machinery released Ripper 1291 | -10/Subcaves | Learned location of Zion (-6) 1291 | -10/Subcaves | Met a Zionite searching for "candidates" 1439 | -10/Subcaves | Discovered new exit (range 8) 1454 | -10/Subcaves | Entered Recycling 1659 | -9/Recycling | Core integrity fell below 50% 1687 | -9/Recycling | Core integrity fell below 20% 2056 | -9/Recycling | Build established: Commander-Mutant 2094 | -9/Recycling | Discovered new exit (range 13) 2411 | -9/Recycling | Scanned before Scraplab entrance 2434 | -9/Recycling | Entered Scraplab 2451 | -9/Recycling | Discovered new exit (range 2) 2462 | -9/Recycling | Entered Scraptown 2462 | -9/Scraptown | Accompanied by 11 allies 2717 | -9/Scraptown | Heard Great Nut preacher, LISTEN AND RECITE! 2800 | -9/Scraptown | Scanned Subdweller tech in exchange for log data 2808 | -9/Scraptown | Learned Factory stockpile data 2830 | -9/Scraptown | Discovered new exit (range 7) 2978 | -9/Scraptown | Visited Science Testing Area 3014 | -9/Scraptown | Visited SPCMW 3046 | -9/Scraptown | Visited TADAMA 3310 | -9/Scraptown | Visited Cave Peace 3405 | -9/Scraptown | Visited Comm Corps 3499 | -9/Scraptown | Visited UFD Registry 3499 | -9/Scraptown | Registered with UFD as "Cryobot" 3510 | -9/Scraptown | Visited The Evicted 3549 | -9/Scraptown | Visited Junk Repository 3911 | -9/Scraptown | Visited Scrapoid Pod Storage 3946 | -9/Scraptown | Visited Sword Containment 4244 | -9/Scraptown | Visited Derelict Rescue Squad 4257 | -9/Scraptown | Found DRS Beacon 4298 | -9/Scraptown | Visited Supply Room 4343 | -9/Scraptown | Visited Junk Repository 4370 | -9/Scraptown | Visited Infowarlord's Domain 4437 | -9/Scraptown | Discovered new exit (range 5) 4578 | -9/Scraptown | Visited Abandonware Association 4596 | -9/Scraptown | Learned abandonware demo "KABOOM.EXE" 4636 | -9/Scraptown | Visited Observation Area 4708 | -9/Scraptown | Visited Botcube Research 4812 | -9/Scraptown | Found Botcube 5465 | -9/Scraptown | Botcube activated 5477 | -9/Scraptown | Botcube completed mutation into treaded form, armed with 1 gun, 1 cannon. 5822 | -9/Scraptown | Visited Curators Association 6151 | -9/Scraptown | Entered Factory 6151 | -6/Factory | Accompanied by 12 allies 6151 | -6/Factory | Evolved 8 slots: Power x1, Propulsion x2, Utility x5 6508 | -6/Factory | Lost 6 allies 6529 | -6/Factory | Discovered new exit (range 7) 6564 | -6/Factory | Assembled infested ambush trap array 6610 | -6/Factory | Lost 3 allies 6633 | -6/Factory | Identified exit to Lower Caves 6651 | -6/Factory | Entered Lower Caves 6886 | -6/Lower Caves | Lost 4 parts (2n2u) 7019 | -6/Lower Caves | Encountered a Warlord checkpoint 7148 | -6/Lower Caves | Build established: Scavenger-Mutant 7169 | -6/Lower Caves | Learned location of Extension (-4) 7186 | -6/Lower Caves | Attracted the attention of an 0b10 outpost 7190 | -6/Lower Caves | Activated DRS Beacon 7228 | -6/Lower Caves | Lost 6 parts (1p2n3u) 7477 | -6/Lower Caves | Attracted the attention of an 0b10 checkpoint 7493 | -6/Lower Caves | Learned 8 Factory zone layouts 7571 | -6/Lower Caves | Discovered new exit (range 15) 7631 | -6/Lower Caves | Identified exit to Lower Caves 7663 | -6/Lower Caves | Found Prototype Device 7663 | -6/Lower Caves | Identified Heart of Steel 8406 | -6/Lower Caves | Learned location of Armory (-4) 8406 | -6/Lower Caves | Learned Extension security intel 8739 | -6/Lower Caves | Entered another Lower Caves area 8739 | -6/Lower Caves | Accompanied by 2 allies 8781 | -6/Lower Caves | Learned Factory garrison access intel 8847 | -6/Lower Caves | Attracted the attention of an 0b10 checkpoint 8902 | -6/Lower Caves | Discovered new exit (range 16) 8922 | -6/Lower Caves | Identified exit to Factory 8982 | -6/Lower Caves | Spotted B-75 Beast 9062 | -6/Lower Caves | Build established: Mutant 9444 | -6/Lower Caves | Lost 4 parts (1p2n1w) 9454 | -6/Lower Caves | Heart of Steel transformed into Warbot 9811 | -6/Lower Caves | Build established: Scavenger-Mutant 9940 | -6/Lower Caves | Encountered a Warlord checkpoint 9960 | -6/Lower Caves | Discovered new exit (range 19) 9973 | -6/Lower Caves | Learned Factory terminal intel 10063 | -6/Lower Caves | Identified exit to Zion 10177 | -6/Lower Caves | Entered Zion 10177 | -6/Zion | Accompanied by 1 ally (Warbot) 10592 | -6/Zion | Learned location of 1 exit from Factory 10684 | -6/Zion | Build established: Derelict-Mutant 10741 | -6/Zion | Turned away by Imprinter 10933 | -6/Zion | Found Prototype Special Weapon 10933 | -6/Zion | Identified RU-N14's Throwing Claymores 10939 | -6/Zion | Found RU-N14's Throwing Claymores 11242 | -6/Zion | Attempted to imprint without authorization 11242 | -6/Zion | Attacked by Zionites 11312 | -6/Zion | Core integrity fell below 50% 11373 | -6/Zion | System corruption reached 10% 11426 | -6/Zion | Lost 13 parts (2p6n5u) 11445 | -6/Zion | Core integrity fell below 20% 11497 | -6/Zion | Destroyed by I5-13E(z) with Makeshift Shrapnel Gun Last Messages --------------- 11450_ System corrupted: Component data lost. 11452_ Acquired 26 matter. 11457_ Acquired Mak. Leg. 11458_ 2H-IRU(z) pulls a Mak. Sword out of the Twisted Machinery. 11459_ Acquired 28 matter. 0M-1AS(z) bursts out of the Twisted Machinery. 11462_ Acquired Mak. Power Source. 11465_ Acquired Mak. Sword. 11465_ 0M-1AS(z) pulls a Mak. Laser out of the Twisted Machinery. 11465_ Mak. Power Source destroyed. 11465_ Critical hit (Burn: +37). 11469_ Lgt. Fission Core destroyed. 11473_ System corrupted: Substantial component data lost. 11473_ C3-UWA(z) pulls a Mak. Sword out of the Twisted Machinery. 11483_ Mak. Leg destroyed. 11490_ System corrupted: Component data lost. Map ----- +----------------------------------------------------+ | " #"""" ##?###??###?#?????????? | | " """" ##""" ###?###?###??#????????? | | " """" """"" """""" # ###?######??#?#??????? | | " """" """ """ """###""#?##?#?##??????????? | | """" """ "" ""#""""#????##??#?????????? | | """ """ """"""##?#?#####?##??????? | | ""######??#####?#?##?# | | " [ ! ""###?######??#?#?#???? | | " "" ""%["""####?#####?#####?#??# | | """"" """ """ ]""#"#####?##???????#???? | | """"""" """"" """#?#####?##??#?#?????# | | #"""""""" """"" ""######????####?####??? | | #"###"#""" """"""" ""##########??#?##??#??? | | ####?###""" """ """ """#####??###?######???? | | ########""" "" """ """##?####?##?###?#?### | | ?########"" " """ ""###?##????###?#?#??# | | ??#######"" """ "######?#?#####?###?## | | ?#?######"" "" ""##?#####?####???#??? | | #?#?##?##"" "" ""####?##?####?##?#?#? | | ??#######"" """ ""##?##?#?#######?#?#?# | | #########""" """"" """#?##############?##? | | ###?###?#""" """"" ""### "############## | | ####?#####"" """" "" "### """"""""""""##? | | ##??######"" """ """ "### """"""""""""#?? | | #?########"" z """""# z ### | | #########""" z@ | | #########"" "z z | | #########" """""""""""# ## | | #########" "z" "" ""### """"""""""""## | | ########"""" "### """"""""""""## | | ######?##""" """## "############# | | ##########"" "z""##?##############?## | | ##########"" ""#"########?##???######## | | ###########" ""########?##?#??##"""### | | ##########"" ""####?#?##?########"" " | | ###########" """"" """"##"?####?########" | | ##########"" """"" """"""""###???#?#?###" " | | ##########"" #"""" """ "#"#####?#####?#" " | | ###########" """" "" """"?#?####?#??#"""##" | | "##"#"####"" #"""" ""#################### | | """"#####"" """""" "#"#???##?###?####??? | | """"#"#""/ """""" ""#########?##?#####? | | """" "" %! """"" "####?#####?#?###?#?# | | %* = %""""" ""#?##?###?#????###?#? | | %%% [ !"" ""##?##?#?#?#???#????# | | / ""##?###?###????#?##?# | | ""########?####????#?# | | """#??????#?#???###?## | | "" """##?????#?#?#???????? | | "" """#"###?#???####???#?### | +----------------------------------------------------+ Best States ------------- Heat Dissipation 37 Energy Generation 34 Energy Capacity 500 Matter Stores 300 Matter Capacity 300 Sight Range 16 Terrain Scan Range 20 Terrain Scan Density 135 Cloak Strength 2 Armor Coverage 100 Resistance: KI 25 Resistance: EX 25 Utility Shielding 66 Weapon Shielding 66 Evasion (%) 55 Recoil Reduction 2 Particle Charging 20 Item Schematics ----------------- Battle Cannon | -6/Zion | Free Beamcaster | -6/Zion | Free Enh. Flamer | -6/Zion | Free Ripper | -6/Zion | Free Plasma Flamer | -6/Zion | Free Tactical Coordination Suite | -6/Zion | Free Robot Schematics ------------------ None Fabricated ------------ Nothing Alien Tech Used ----------------- None Achievements -------------- None Challenges ------------ None Game ------ Seed ArcImprovedCyclogen Manual? 0 Play Time 01:02:38 Cumulative 55.8 hours Start 2024.08.14 @ 00:29:26 End 2024.08.14 @ 01:28:26 Sessions 1 Manual Loads 0 Difficulty Rogue Special Mode None Game No. 161 Rogue 159 Adventurer 2 Explorer 0 Win Type - Total 0 Types 0/0/0/0/0/0/0/0/0 Lore% 42 Gallery% 48 Achievement% 37 Wizard Run 0 Options --------- Layout 2 ASCII 0 Keyboard 0 Movement Arrows Keybinds 0 Fullscreen 2 Font 24/Smallcaps Map View 50x44 Zoom Use 0% Tactical HUD 1 Map Filters NONE Filters NONE Steam 1 RUN: 5875fa3b-8f06-4606-90dd-56f31c22a3f6